[Event "Titled Tuesday Blitz September 21 2021"]
[White "Karavade, Eesha"]
[Black "Tisaj, Domen"]
[WhiteFideId "5012600"]
[BlackFideId "14628708"]
[WhiteElo "2258"]
[BlackElo "2272"]
[Result "0-1"]
[Round "01"]
[TimeControl "180+1"]
[Date "2021.09.21"]
[WhiteClock "0:00:01"]
[BlackClock "0:00:05"]

1. d4 {[%clk 0:03:00]}  Nf6 {[%clk 0:02:59]} 2. c4 {[%clk 0:03:00]}  e6 {[%clk 0:02:59]} 3. Nc3 {[%clk 0:02:59]}  Bb4 {[%clk 0:02:59]} 4. Qc2 {[%clk 0:02:58]}  d5 {[%clk 0:02:57]} 5. cxd5 {[%clk 0:02:56]}  Qxd5 {[%clk 0:02:58]} 6. Nf3 {[%clk 0:02:56]}  Qf5 {[%clk 0:02:58]} 7. Qxf5 {[%clk 0:02:55]}  exf5 {[%clk 0:02:59]} 8. Bd2 {[%clk 0:02:46]}  c6 {[%clk 0:02:58]} 9. e3 {[%clk 0:02:46]}  O-O {[%clk 0:02:58]} 10. Bd3 {[%clk 0:02:46]}  Be6 {[%clk 0:02:57]} 11. a3 {[%clk 0:02:44]}  Bd6 {[%clk 0:02:52]} 12. Ke2 {[%clk 0:02:43]}  Nbd7 {[%clk 0:02:52]} 13. Rhc1 {[%clk 0:02:35]}  Rfe8 {[%clk 0:02:52]} 14. g3 {[%clk 0:02:29]}  g6 {[%clk 0:02:51]} 15. Kf1 {[%clk 0:02:21]}  Rad8 {[%clk 0:02:51]} 16. Be1 {[%clk 0:02:16]}  c5 {[%clk 0:02:47]} 17. Nb5 {[%clk 0:02:13]}  Bb8 {[%clk 0:02:46]} 18. Be2 {[%clk 0:02:07]}  a6 {[%clk 0:02:42]} 19. Nc3 {[%clk 0:02:06]}  Ba7 {[%clk 0:02:21]} 20. Na4 {[%clk 0:01:44]}  cxd4 {[%clk 0:02:16]} 21. Nxd4 {[%clk 0:01:44]}  Bxd4 {[%clk 0:02:08]} 22. exd4 {[%clk 0:01:44]}  Bd5 {[%clk 0:01:55]} 23. Ba5 {[%clk 0:01:43]}  Rc8 {[%clk 0:01:52]} 24. Nc5 {[%clk 0:01:35]}  Nxc5 {[%clk 0:01:44]} 25. dxc5 {[%clk 0:01:34]}  Ne4 {[%clk 0:01:35]} 26. Bb4 {[%clk 0:01:16]}  Bc6 {[%clk 0:01:25]} 27. f3 {[%clk 0:01:13]}  Ng5 {[%clk 0:01:21]} 28. Kf2 {[%clk 0:01:13]}  f4 {[%clk 0:01:12]} 29. Bd2 {[%clk 0:01:01]}  fxg3+ {[%clk 0:01:10]} 30. hxg3 {[%clk 0:01:01]}  Ne6 {[%clk 0:01:10]} 31. Be3 {[%clk 0:00:59]}  Ng7 {[%clk 0:01:10]} 32. g4 {[%clk 0:00:58]}  h5 {[%clk 0:01:09]} 33. gxh5 {[%clk 0:00:52]}  Nxh5 {[%clk 0:01:10]} 34. Bc4 {[%clk 0:00:45]}  Rcd8 {[%clk 0:00:54]} 35. Rd1 {[%clk 0:00:45]}  Ng7 {[%clk 0:00:50]} 36. Rxd8 {[%clk 0:00:43]}  Rxd8 {[%clk 0:00:51]} 37. Rg1 {[%clk 0:00:42]}  Kf8 {[%clk 0:00:41]} 38. Rh1 {[%clk 0:00:37]}  Nh5 {[%clk 0:00:36]} 39. Bh6+ {[%clk 0:00:32]}  Kg8 {[%clk 0:00:29]} 40. Rg1 {[%clk 0:00:27]}  Kh7 {[%clk 0:00:23]} 41. Bg5 {[%clk 0:00:26]}  Rd7 {[%clk 0:00:21]} 42. Re1 {[%clk 0:00:22]}  Kg7 {[%clk 0:00:19]} 43. Be7 {[%clk 0:00:20]}  Nf4 {[%clk 0:00:16]} 44. Bd6 {[%clk 0:00:20]}  Nh3+ {[%clk 0:00:11]} 45. Kg3 {[%clk 0:00:19]}  Ng5 {[%clk 0:00:12]} 46. Be5+ {[%clk 0:00:15]}  f6 {[%clk 0:00:12]} 47. Bd6 {[%clk 0:00:14]}  Nxf3 {[%clk 0:00:10]} 48. Re8 {[%clk 0:00:15]}  Ne5 {[%clk 0:00:07]} 49. Bxe5 {[%clk 0:00:13]}  fxe5 {[%clk 0:00:07]} 50. Rxe5 {[%clk 0:00:13]}  Rd2 {[%clk 0:00:07]} 51. Re7+ {[%clk 0:00:12]}  Kf6 {[%clk 0:00:06]} 52. Rf7+ {[%clk 0:00:12]}  Kg5 {[%clk 0:00:07]} 53. b4 {[%clk 0:00:12]}  Rc2 {[%clk 0:00:06]} 54. Be6 {[%clk 0:00:11]}  Rc3+ {[%clk 0:00:06]} 55. Kf2 {[%clk 0:00:10]}  Rxa3 {[%clk 0:00:06]} 56. Rc7 {[%clk 0:00:07]}  Ra4 {[%clk 0:00:05]} 57. Bc8 {[%clk 0:00:01]}  Rxb4 {[%clk 0:00:05]} 0-1


[Site "https://www.chess.com"]

[Event "Titled Tuesday Blitz September 21 2021"]
[White "Kim, Sergey"]
[Black "Khanin, Semen"]
[WhiteFideId "13700570"]
[BlackFideId "4111990"]
[WhiteElo "2416"]
[BlackElo "2449"]
[Result "0-1"]
[Round "01"]
[TimeControl "180+1"]
[Date "2021.09.21"]
[WhiteClock "0:00:01"]
[BlackClock "0:00:13"]

1. d4 {[%clk 0:03:00]}  Nf6 {[%clk 0:02:59]} 2. c4 {[%clk 0:02:59]}  g6 {[%clk 0:02:59]} 3. Nc3 {[%clk 0:02:57]}  d5 {[%clk 0:03:00]} 4. cxd5 {[%clk 0:02:51]}  Nxd5 {[%clk 0:03:00]} 5. e4 {[%clk 0:02:50]}  Nxc3 {[%clk 0:03:01]} 6. bxc3 {[%clk 0:02:50]}  Bg7 {[%clk 0:03:02]} 7. Bc4 {[%clk 0:02:49]}  c5 {[%clk 0:03:00]} 8. Ne2 {[%clk 0:02:49]}  Nc6 {[%clk 0:03:01]} 9. Be3 {[%clk 0:02:48]}  O-O {[%clk 0:03:01]} 10. O-O {[%clk 0:02:47]}  b6 {[%clk 0:03:02]} 11. Rc1 {[%clk 0:02:44]}  Bb7 {[%clk 0:02:59]} 12. Qd2 {[%clk 0:02:44]}  cxd4 {[%clk 0:02:54]} 13. cxd4 {[%clk 0:02:43]}  Na5 {[%clk 0:02:52]} 14. Bd3 {[%clk 0:02:41]}  Qd7 {[%clk 0:02:52]} 15. Bh6 {[%clk 0:02:38]}  Rac8 {[%clk 0:02:49]} 16. Bxg7 {[%clk 0:02:37]}  Kxg7 {[%clk 0:02:49]} 17. Qg5 {[%clk 0:02:33]}  Nc6 {[%clk 0:02:06]} 18. Bb5 {[%clk 0:02:10]}  a6 {[%clk 0:02:04]} 19. Bxc6 {[%clk 0:02:08]}  Bxc6 {[%clk 0:02:04]} 20. d5 {[%clk 0:01:33]}  Bb5 {[%clk 0:02:04]} 21. Qe3 {[%clk 0:01:28]}  Bxe2 {[%clk 0:01:55]} 22. Qxe2 {[%clk 0:01:27]}  Qa4 {[%clk 0:01:55]} 23. h4 {[%clk 0:01:19]}  b5 {[%clk 0:01:49]} 24. h5 {[%clk 0:01:13]}  Qd4 {[%clk 0:01:42]} 25. Rcd1 {[%clk 0:01:00]}  Qe5 {[%clk 0:01:33]} 26. hxg6 {[%clk 0:00:46]}  hxg6 {[%clk 0:01:32]} 27. f4 {[%clk 0:00:43]}  Qc3 {[%clk 0:01:18]} 28. Rd3 {[%clk 0:00:32]}  Qc5+ {[%clk 0:01:18]} 29. Qe3 {[%clk 0:00:30]}  Qxe3+ {[%clk 0:01:15]} 30. Rxe3 {[%clk 0:00:29]}  Rc4 {[%clk 0:01:11]} 31. Rd1 {[%clk 0:00:24]}  Rd8 {[%clk 0:01:07]} 32. Rd2 {[%clk 0:00:22]}  b4 {[%clk 0:01:05]} 33. Kf2 {[%clk 0:00:21]}  a5 {[%clk 0:01:04]} 34. Kf3 {[%clk 0:00:19]}  f6 {[%clk 0:00:57]} 35. e5 {[%clk 0:00:12]}  fxe5 {[%clk 0:00:57]} 36. fxe5 {[%clk 0:00:12]}  a4 {[%clk 0:00:56]} 37. Re4 {[%clk 0:00:08]}  Rc3+ {[%clk 0:00:47]} 38. Ke2 {[%clk 0:00:06]}  Rc5 {[%clk 0:00:13]} 39. d6 {[%clk 0:00:02]}  exd6 {[%clk 0:00:13]} 40. exd6 {[%clk 0:00:01]}  Rb5 {[%clk 0:00:13]} 0-1


[Site "https://www.chess.com"]

[Event "Titled Tuesday Blitz September 21 2021"]
[White "Kovalev, Vladislav"]
[Black "Berezin, Viktor"]
[WhiteFideId "13504398"]
[BlackFideId "14107872"]
[WhiteElo "2573"]
[BlackElo "2310"]
[Result "1-0"]
[Round "01"]
[TimeControl "180+1"]
[Date "2021.09.21"]
[WhiteClock "0:00:05"]
[BlackClock "0:00:08"]

1. e4 {[%clk 0:02:21]}  d5 {[%clk 0:02:58]} 2. exd5 {[%clk 0:02:21]}  Nf6 {[%clk 0:02:57]} 3. d4 {[%clk 0:02:20]}  Bg4 {[%clk 0:02:56]} 4. f3 {[%clk 0:02:21]}  Bf5 {[%clk 0:02:54]} 5. c4 {[%clk 0:02:17]}  e6 {[%clk 0:02:52]} 6. g4 {[%clk 0:02:16]}  Nxg4 {[%clk 0:02:30]} 7. fxg4 {[%clk 0:02:15]}  Qh4+ {[%clk 0:02:29]} 8. Kd2 {[%clk 0:02:15]}  Be4 {[%clk 0:02:21]} 9. dxe6 {[%clk 0:01:16]}  Bxh1 {[%clk 0:02:07]} 10. exf7+ {[%clk 0:01:16]}  Kxf7 {[%clk 0:02:06]} 11. Nc3 {[%clk 0:01:07]}  Nc6 {[%clk 0:02:00]} 12. Kc2 {[%clk 0:00:57]}  Qf2+ {[%clk 0:01:54]} 13. Nge2 {[%clk 0:00:52]}  Bb4 {[%clk 0:01:27]} 14. d5 {[%clk 0:00:39]}  Bxc3 {[%clk 0:01:26]} 15. Kxc3 {[%clk 0:00:37]}  Ne5 {[%clk 0:01:17]} 16. Nd4 {[%clk 0:00:33]}  Nf3 {[%clk 0:01:03]} 17. Bf4 {[%clk 0:00:19]}  Rhe8 {[%clk 0:00:49]} 18. Ne6 {[%clk 0:00:08]}  Rac8 {[%clk 0:00:39]} 19. Bd3 {[%clk 0:00:03]}  Bg2 {[%clk 0:00:38]} 20. Qe2 {[%clk 0:00:02]}  Qxe2 {[%clk 0:00:34]} 21. Bxe2 {[%clk 0:00:03]}  c6 {[%clk 0:00:34]} 22. Bxf3 {[%clk 0:00:04]}  Bxf3 {[%clk 0:00:33]} 23. Ng5+ {[%clk 0:00:04]}  Kg6 {[%clk 0:00:33]} 24. Nxf3 {[%clk 0:00:05]}  cxd5 {[%clk 0:00:33]} 25. Ne5+ {[%clk 0:00:05]}  Rxe5 {[%clk 0:00:29]} 26. Bxe5 {[%clk 0:00:05]}  Rxc4+ {[%clk 0:00:30]} 27. Kd3 {[%clk 0:00:06]}  Rxg4 {[%clk 0:00:30]} 28. Rf1 {[%clk 0:00:05]}  Rg2 {[%clk 0:00:30]} 29. Rf8 {[%clk 0:00:04]}  h5 {[%clk 0:00:24]} 30. Rb8 {[%clk 0:00:04]}  Kf5 {[%clk 0:00:23]} 31. Bd4 {[%clk 0:00:04]}  Rxh2 {[%clk 0:00:22]} 32. Bxg7 {[%clk 0:00:05]}  Rg2 {[%clk 0:00:20]} 33. Bd4 {[%clk 0:00:05]}  b6 {[%clk 0:00:20]} 34. Rf8+ {[%clk 0:00:04]}  Ke6 {[%clk 0:00:19]} 35. Rf6+ {[%clk 0:00:04]}  Ke7 {[%clk 0:00:19]} 36. Rh6 {[%clk 0:00:05]}  Rh2 {[%clk 0:00:18]} 37. Be5 {[%clk 0:00:05]}  Rh3+ {[%clk 0:00:18]} 38. Kd4 {[%clk 0:00:05]}  Rh1 {[%clk 0:00:15]} 39. Kxd5 {[%clk 0:00:05]}  h4 {[%clk 0:00:15]} 40. Bd4 {[%clk 0:00:06]}  h3 {[%clk 0:00:15]} 41. Kc6 {[%clk 0:00:04]}  h2 {[%clk 0:00:15]} 42. Bc3 {[%clk 0:00:03]}  Ra1 {[%clk 0:00:06]} 43. Rxh2 {[%clk 0:00:03]}  Rxa2 {[%clk 0:00:07]} 44. Kb7 {[%clk 0:00:04]}  Kd6 {[%clk 0:00:07]} 45. Rh6+ {[%clk 0:00:04]}  Kc5 {[%clk 0:00:07]} 46. Rh4 {[%clk 0:00:05]}  Ra1 {[%clk 0:00:06]} 47. b4+ {[%clk 0:00:03]}  Kb5 {[%clk 0:00:06]} 48. Bxa1 {[%clk 0:00:03]}  a5 {[%clk 0:00:06]} 49. bxa5 {[%clk 0:00:04]}  bxa5 {[%clk 0:00:07]} 50. Bc3 {[%clk 0:00:05]}  a4 {[%clk 0:00:08]} 51. Rb4+ {[%clk 0:00:05]}  Ka5 {[%clk 0:00:08]} 52. Rb3# {[%clk 0:00:05]} 1-0


[Site "https://www.chess.com"]

[Event "Titled Tuesday Blitz September 21 2021"]
[White "Krivonosov, Oleg"]
[Black "Okike, David"]
[WhiteFideId "11600349"]
[BlackFideId "8500134"]
[WhiteElo "2469"]
[BlackElo "2232"]
[Result "1-0"]
[Round "01"]
[TimeControl "180+1"]
[Date "2021.09.21"]
[WhiteClock "0:01:16"]
[BlackClock "0:01:52"]

1. Nf3 {[%clk 0:03:00]}  d5 {[%clk 0:02:59]} 2. d4 {[%clk 0:02:59]}  c6 {[%clk 0:02:58]} 3. c4 {[%clk 0:02:59]}  Nf6 {[%clk 0:02:58]} 4. cxd5 {[%clk 0:02:59]}  cxd5 {[%clk 0:02:57]} 5. Nc3 {[%clk 0:02:59]}  Nc6 {[%clk 0:02:57]} 6. Bf4 {[%clk 0:02:59]}  Bf5 {[%clk 0:02:56]} 7. e3 {[%clk 0:02:58]}  a6 {[%clk 0:02:56]} 8. Rc1 {[%clk 0:02:56]}  e6 {[%clk 0:02:53]} 9. Qb3 {[%clk 0:02:55]}  Na5 {[%clk 0:02:52]} 10. Qa4+ {[%clk 0:02:54]}  b5 {[%clk 0:02:47]} 11. Nxb5 {[%clk 0:02:52]}  axb5 {[%clk 0:02:48]} 12. Bxb5+ {[%clk 0:02:51]}  Nd7 {[%clk 0:02:47]} 13. Ne5 {[%clk 0:02:50]}  Nc6 {[%clk 0:02:46]} 14. Nxc6 {[%clk 0:02:50]}  Rxa4 {[%clk 0:02:44]} 15. Nxd8 {[%clk 0:02:50]}  Rxa2 {[%clk 0:02:43]} 16. Rc8 {[%clk 0:02:47]}  Bb4+ {[%clk 0:02:43]} 17. Ke2 {[%clk 0:02:45]}  Ke7 {[%clk 0:02:42]} 18. Nc6+ {[%clk 0:02:37]}  Kf6 {[%clk 0:02:43]} 19. Rxh8 {[%clk 0:02:26]}  Rxb2+ {[%clk 0:02:43]} 20. Kf3 {[%clk 0:02:26]}  Be4+ {[%clk 0:02:33]} 21. Kg3 {[%clk 0:02:25]}  g5 {[%clk 0:02:33]} 22. Be5+ {[%clk 0:02:09]}  Nxe5 {[%clk 0:02:33]} 23. dxe5+ {[%clk 0:02:07]}  Kg7 {[%clk 0:02:33]} 24. Rb8 {[%clk 0:01:51]}  Bc3 {[%clk 0:02:32]} 25. Nd4 {[%clk 0:01:43]}  h5 {[%clk 0:02:29]} 26. h4 {[%clk 0:01:42]}  g4 {[%clk 0:02:09]} 27. Rb7 {[%clk 0:01:37]}  Bxd4 {[%clk 0:02:08]} 28. exd4 {[%clk 0:01:36]}  Rb3+ {[%clk 0:02:06]} 29. Kh2 {[%clk 0:01:28]}  g3+ {[%clk 0:02:06]} 30. fxg3 {[%clk 0:01:27]}  Rb2 {[%clk 0:02:06]} 31. Rg1 {[%clk 0:01:26]}  Kg6 {[%clk 0:02:04]} 32. Bc6 {[%clk 0:01:26]}  Rc2 {[%clk 0:02:03]} 33. Be8 {[%clk 0:01:25]}  Rd2 {[%clk 0:02:01]} 34. Bxf7+ {[%clk 0:01:24]}  Kh6 {[%clk 0:01:55]} 35. Bxe6 {[%clk 0:01:21]}  Rxd4 {[%clk 0:01:55]} 36. Bh3 {[%clk 0:01:20]}  Rd2 {[%clk 0:01:51]} 37. Ra1 {[%clk 0:01:18]}  d4 {[%clk 0:01:52]} 38. Ra6+ {[%clk 0:01:16]} 1-0


[Site "https://www.chess.com"]

[Event "Titled Tuesday Blitz September 21 2021"]
[White "Lashkin, Jegor"]
[Black "Martin Carmona, Gaston Manuel"]
[WhiteFideId "13907808"]
[BlackFideId "22284567"]
[WhiteElo "2293"]
[BlackElo "2161"]
[Result "1-0"]
[Round "01"]
[TimeControl "180+1"]
[Date "2021.09.21"]
[WhiteClock "0:00:22"]
[BlackClock "0:00:06"]

1. a3 {[%clk 0:03:00]}  Nf6 {[%clk 0:02:55]} 2. d4 {[%clk 0:02:58]}  g6 {[%clk 0:02:55]} 3. g3 {[%clk 0:02:55]}  Bg7 {[%clk 0:02:55]} 4. Bg2 {[%clk 0:02:55]}  O-O {[%clk 0:02:56]} 5. e4 {[%clk 0:02:55]}  d6 {[%clk 0:02:55]} 6. Nc3 {[%clk 0:02:54]}  Nbd7 {[%clk 0:02:55]} 7. Nge2 {[%clk 0:02:54]}  c6 {[%clk 0:02:56]} 8. O-O {[%clk 0:02:54]}  Qc7 {[%clk 0:02:56]} 9. h3 {[%clk 0:02:54]}  e5 {[%clk 0:02:57]} 10. Be3 {[%clk 0:02:53]}  Re8 {[%clk 0:02:56]} 11. d5 {[%clk 0:02:50]}  cxd5 {[%clk 0:02:37]} 12. exd5 {[%clk 0:02:49]}  Nc5 {[%clk 0:02:31]} 13. Qd2 {[%clk 0:02:37]}  h5 {[%clk 0:02:19]} 14. b4 {[%clk 0:02:35]}  Ncd7 {[%clk 0:02:16]} 15. Nb5 {[%clk 0:02:35]}  Qb8 {[%clk 0:02:16]} 16. c4 {[%clk 0:02:35]}  a6 {[%clk 0:02:15]} 17. Nbc3 {[%clk 0:02:34]}  Qc7 {[%clk 0:02:15]} 18. c5 {[%clk 0:02:32]}  Bf8 {[%clk 0:02:00]} 19. c6 {[%clk 0:02:30]}  Nb6 {[%clk 0:01:56]} 20. b5 {[%clk 0:01:52]}  bxc6 {[%clk 0:01:30]} 21. bxc6 {[%clk 0:01:49]}  Nc4 {[%clk 0:01:29]} 22. Qd3 {[%clk 0:01:48]}  Nxe3 {[%clk 0:01:29]} 23. fxe3 {[%clk 0:01:43]}  Bg7 {[%clk 0:01:25]} 24. e4 {[%clk 0:01:39]}  a5 {[%clk 0:01:11]} 25. Nb5 {[%clk 0:01:39]}  Qb6+ {[%clk 0:01:12]} 26. Kh1 {[%clk 0:01:37]}  Ba6 {[%clk 0:01:11]} 27. a4 {[%clk 0:01:35]}  Bxb5 {[%clk 0:01:01]} 28. Qxb5 {[%clk 0:01:18]}  Reb8 {[%clk 0:01:00]} 29. Qxb6 {[%clk 0:01:15]}  Rxb6 {[%clk 0:01:01]} 30. Rfb1 {[%clk 0:01:09]}  Rxb1+ {[%clk 0:00:55]} 31. Rxb1 {[%clk 0:01:08]}  Ne8 {[%clk 0:00:56]} 32. Rb7 {[%clk 0:01:07]}  Bh6 {[%clk 0:00:53]} 33. Nc3 {[%clk 0:01:06]}  Kf8 {[%clk 0:00:37]} 34. Nb5 {[%clk 0:01:06]}  Rc8 {[%clk 0:00:30]} 35. Ra7 {[%clk 0:00:58]}  Bd2 {[%clk 0:00:29]} 36. Bf1 {[%clk 0:00:55]}  Bb4 {[%clk 0:00:28]} 37. Bd3 {[%clk 0:00:53]}  Bc5 {[%clk 0:00:22]} 38. Rb7 {[%clk 0:00:45]}  Bb4 {[%clk 0:00:20]} 39. Kg2 {[%clk 0:00:45]}  Bc5 {[%clk 0:00:18]} 40. Kf3 {[%clk 0:00:45]}  Bb4 {[%clk 0:00:18]} 41. g4 {[%clk 0:00:38]}  h4 {[%clk 0:00:18]} 42. Ke2 {[%clk 0:00:33]}  Bc5 {[%clk 0:00:17]} 43. Kd2 {[%clk 0:00:33]}  Bb4+ {[%clk 0:00:18]} 44. Kc2 {[%clk 0:00:33]}  Bc5 {[%clk 0:00:19]} 45. Kb3 {[%clk 0:00:33]}  Bb4 {[%clk 0:00:19]} 46. Na7 {[%clk 0:00:32]}  Ra8 {[%clk 0:00:19]} 47. c7 {[%clk 0:00:30]}  Nxc7 {[%clk 0:00:10]} 48. Rxc7 {[%clk 0:00:31]}  Bc5 {[%clk 0:00:10]} 49. Rc8+ {[%clk 0:00:31]}  Rxc8 {[%clk 0:00:09]} 50. Nxc8 {[%clk 0:00:32]}  Kg7 {[%clk 0:00:10]} 51. g5 {[%clk 0:00:28]}  f6 {[%clk 0:00:10]} 52. Be2 {[%clk 0:00:23]}  fxg5 {[%clk 0:00:10]} 53. Bg4 {[%clk 0:00:23]}  Kf8 {[%clk 0:00:10]} 54. Kc4 {[%clk 0:00:22]}  Ke8 {[%clk 0:00:10]} 55. Kb5 {[%clk 0:00:23]}  Kd8 {[%clk 0:00:11]} 56. Nb6 {[%clk 0:00:21]}  Kc7 {[%clk 0:00:10]} 57. Nc4 {[%clk 0:00:21]}  Kb7 {[%clk 0:00:09]} 58. Nxa5+ {[%clk 0:00:21]}  Kc7 {[%clk 0:00:09]} 59. Nc6 {[%clk 0:00:21]}  Bf2 {[%clk 0:00:09]} 60. a5 {[%clk 0:00:21]}  Kb7 {[%clk 0:00:09]} 61. a6+ {[%clk 0:00:20]}  Kc7 {[%clk 0:00:10]} 62. Ne7 {[%clk 0:00:20]}  Be3 {[%clk 0:00:08]} 63. Nxg6 {[%clk 0:00:21]}  Bf2 {[%clk 0:00:08]} 64. Nf8 {[%clk 0:00:21]}  Be3 {[%clk 0:00:09]} 65. Ne6+ {[%clk 0:00:21]}  Kb8 {[%clk 0:00:05]} 66. Kc6 {[%clk 0:00:22]}  Ka7 {[%clk 0:00:05]} 67. Kxd6 {[%clk 0:00:22]}  Kxa6 {[%clk 0:00:06]} 68. Kxe5 {[%clk 0:00:22]} 1-0


[Site "https://www.chess.com"]

[Event "Titled Tuesday Blitz September 21 2021"]
[White "Leve, Nitai"]
[Black "Vakhlamov, Igor L."]
[WhiteFideId "2006898"]
[BlackFideId "24126748"]
[WhiteElo "2144"]
[BlackElo "2416"]
[Result "1/2-1/2"]
[Round "01"]
[TimeControl "180+1"]
[Date "2021.09.21"]
[WhiteClock "0:00:04"]
[BlackClock "0:00:04"]

1. e4 {[%clk 0:03:00]}  c5 {[%clk 0:02:57]} 2. Nf3 {[%clk 0:02:58]}  Nc6 {[%clk 0:02:57]} 3. d4 {[%clk 0:02:57]}  cxd4 {[%clk 0:02:58]} 4. Nxd4 {[%clk 0:02:56]}  g6 {[%clk 0:02:59]} 5. Nc3 {[%clk 0:02:54]}  Bg7 {[%clk 0:02:59]} 6. Be3 {[%clk 0:02:54]}  Nf6 {[%clk 0:02:59]} 7. Be2 {[%clk 0:02:54]}  O-O {[%clk 0:02:59]} 8. f4 {[%clk 0:02:54]}  d6 {[%clk 0:02:48]} 9. Nb3 {[%clk 0:02:43]}  a6 {[%clk 0:02:44]} 10. g4 {[%clk 0:02:40]}  b5 {[%clk 0:02:44]} 11. g5 {[%clk 0:02:32]}  Nd7 {[%clk 0:02:43]} 12. h4 {[%clk 0:02:25]}  Bb7 {[%clk 0:02:32]} 13. h5 {[%clk 0:02:18]}  b4 {[%clk 0:02:31]} 14. hxg6 {[%clk 0:01:55]}  hxg6 {[%clk 0:02:06]} 15. Na4 {[%clk 0:00:55]}  Rc8 {[%clk 0:01:50]} 16. Bd3 {[%clk 0:00:37]}  e6 {[%clk 0:01:30]} 17. Qe2 {[%clk 0:00:34]}  Re8 {[%clk 0:01:10]} 18. O-O-O {[%clk 0:00:33]}  Na5 {[%clk 0:01:10]} 19. Bxa6 {[%clk 0:00:26]}  Nxb3+ {[%clk 0:01:04]} 20. axb3 {[%clk 0:00:26]}  Bxe4 {[%clk 0:00:58]} 21. Bxc8 {[%clk 0:00:21]}  Qxc8 {[%clk 0:00:59]} 22. Rh2 {[%clk 0:00:17]}  d5 {[%clk 0:00:51]} 23. Bd4 {[%clk 0:00:14]}  e5 {[%clk 0:00:51]} 24. fxe5 {[%clk 0:00:14]}  Nxe5 {[%clk 0:00:52]} 25. Rf2 {[%clk 0:00:11]}  Bf5 {[%clk 0:00:22]} 26. Kb1 {[%clk 0:00:10]}  Nd3 {[%clk 0:00:22]} 27. Qf1 {[%clk 0:00:09]}  Bxd4 {[%clk 0:00:19]} 28. Rxf5 {[%clk 0:00:04]}  Qxf5 {[%clk 0:00:15]} 29. Qxf5 {[%clk 0:00:04]}  gxf5 {[%clk 0:00:16]} 30. Rxd3 {[%clk 0:00:05]}  Re4 {[%clk 0:00:16]} 31. c3 {[%clk 0:00:04]}  Be3 {[%clk 0:00:10]} 32. Rxd5 {[%clk 0:00:04]}  f4 {[%clk 0:00:10]} 33. Rf5 {[%clk 0:00:03]}  Kg7 {[%clk 0:00:11]} 34. cxb4 {[%clk 0:00:03]}  Rxb4 {[%clk 0:00:11]} 35. Nc3 {[%clk 0:00:03]}  Kg6 {[%clk 0:00:10]} 36. Rf6+ {[%clk 0:00:03]}  Kxg5 {[%clk 0:00:11]} 37. Rxf7 {[%clk 0:00:03]}  Rxb3 {[%clk 0:00:11]} 38. Kc2 {[%clk 0:00:04]}  Rb8 {[%clk 0:00:10]} 39. Nd5 {[%clk 0:00:04]}  Rd8 {[%clk 0:00:10]} 40. Nxe3 {[%clk 0:00:03]}  fxe3 {[%clk 0:00:11]} 41. Re7 {[%clk 0:00:04]}  Kf4 {[%clk 0:00:11]} 42. b4 {[%clk 0:00:05]}  Kf3 {[%clk 0:00:10]} 43. b5 {[%clk 0:00:05]}  Rd4 {[%clk 0:00:09]} 44. b6 {[%clk 0:00:04]}  Rb4 {[%clk 0:00:09]} 45. b7 {[%clk 0:00:04]}  e2 {[%clk 0:00:09]} 46. Kd2 {[%clk 0:00:05]}  Rb2+ {[%clk 0:00:09]} 47. Ke1 {[%clk 0:00:03]}  Rb1+ {[%clk 0:00:09]} 48. Kd2 {[%clk 0:00:03]}  Rb2+ {[%clk 0:00:08]} 49. Ke1 {[%clk 0:00:03]}  Rb1+ {[%clk 0:00:07]} 50. Kd2 {[%clk 0:00:04]}  Rb2+ {[%clk 0:00:04]} 1/2-1/2


[Site "https://www.chess.com"]

[Event "Titled Tuesday Blitz September 21 2021"]
[White "Macovei, Andrei"]
[Black "Beulen, Marcel"]
[WhiteFideId "13904680"]
[BlackFideId "1001450"]
[WhiteElo "2389"]
[BlackElo "2389"]
[Result "1-0"]
[Round "01"]
[TimeControl "180+1"]
[Date "2021.09.21"]
[WhiteClock "0:00:59"]
[BlackClock "0:00:42"]

1. e4 {[%clk 0:03:00]}  d5 {[%clk 0:02:59]} 2. exd5 {[%clk 0:02:59]}  Qxd5 {[%clk 0:03:00]} 3. d4 {[%clk 0:02:58]}  e5 {[%clk 0:02:53]} 4. Nc3 {[%clk 0:02:39]}  Bb4 {[%clk 0:02:49]} 5. Bd2 {[%clk 0:02:32]}  Qxd4 {[%clk 0:02:15]} 6. Nf3 {[%clk 0:02:31]}  Qd6 {[%clk 0:01:54]} 7. Qe2 {[%clk 0:02:31]}  Nc6 {[%clk 0:01:49]} 8. O-O-O {[%clk 0:02:28]}  Nf6 {[%clk 0:01:33]} 9. Bf4 {[%clk 0:02:02]}  Qe7 {[%clk 0:01:28]} 10. Nxe5 {[%clk 0:02:00]}  Bxc3 {[%clk 0:01:27]} 11. bxc3 {[%clk 0:01:59]}  Qa3+ {[%clk 0:01:21]} 12. Kb1 {[%clk 0:01:59]}  Be6 {[%clk 0:01:19]} 13. c4 {[%clk 0:01:46]}  Nb4 {[%clk 0:01:11]} 14. c3 {[%clk 0:01:45]}  Bf5+ {[%clk 0:01:08]} 15. Nd3+ {[%clk 0:01:45]}  Kf8 {[%clk 0:01:06]} 16. cxb4 {[%clk 0:01:44]}  Qxb4+ {[%clk 0:01:02]} 17. Qb2 {[%clk 0:01:41]}  Qxc4 {[%clk 0:01:02]} 18. Be3 {[%clk 0:01:33]}  Rd8 {[%clk 0:00:59]} 19. Ka1 {[%clk 0:01:28]}  Bxd3 {[%clk 0:00:56]} 20. Qa3+ {[%clk 0:01:27]}  Kg8 {[%clk 0:00:49]} 21. Bxd3 {[%clk 0:01:27]}  Qg4 {[%clk 0:00:45]} 22. Be2 {[%clk 0:01:19]}  Qc8 {[%clk 0:00:43]} 23. Rxd8+ {[%clk 0:01:17]}  Qxd8 {[%clk 0:00:44]} 24. Rd1 {[%clk 0:01:17]}  Qe8 {[%clk 0:00:45]} 25. Qxa7 {[%clk 0:01:08]}  h6 {[%clk 0:00:44]} 26. Qxb7 {[%clk 0:01:03]}  Qe5+ {[%clk 0:00:44]} 27. Qb2 {[%clk 0:01:03]}  Qe4 {[%clk 0:00:42]} 28. Rd8+ {[%clk 0:00:59]}  Kh7 {[%clk 0:00:42]} 29. Bd3 {[%clk 0:00:59]} 1-0


[Site "https://www.chess.com"]